fUSD/lending_fUSD_20250720
["ID","MTS","AMOUNT","RATE_DAILY","PERIOD"]
[373433988,1753008638109,-500.0,0.00018356,2]
[373433990,1753008638118,-500.0,0.00018356,2]
[373433992,1753008638128,-500.0,0.00018356,2]
[373433994,1753008638137,-500.0,0.00018356,2]
[373433995,1753008638146,-500.0,0.00018356,2]
[373433997,1753008638155,-500.0,0.00018356,2]
[373433999,1753008638164,-102.68726241,0.00018356,2]
[373434001,1753008638176,-420.31273759,0.00018356,2]
[373434002,1753008638185,-500.0,0.00018356,2]
[373434003,1753008638194,-500.0,0.00018356,2]
[373434004,1753008638203,-500.0,0.00018356,2]
[373434005,1753008638213,-500.0,0.00018356,2]
[373434006,1753008638221,-500.0,0.00018356,2]
[373434007,1753008638230,-500.0,0.00018356,2]
[373434008,1753008638239,-500.0,0.00018356,2]
[373434009,1753008638248,-500.0,0.00018356,2]
[373434010,1753008638257,-500.0,0.00018356,2]
[373434011,1753008638266,-500.0,0.00018356,2]
[373434012,1753008638275,-500.0,0.00018356,2]
[373434013,1753008638284,-500.0,0.00018392,2]
[373434014,1753008638293,-150.0,0.00018392,2]
[373434016,1753008638302,-433.0,0.00018392,2]
[373434017,1753008638311,-150.0,0.00018392,2]
[373434019,1753008638320,-500.0,0.00018392,2]
[373434021,1753008638329,-200.75331276,0.00018392,2]
[373434023,1753008638339,-3059.0,0.00018392,2]
[373434025,1753008638348,-150.0,0.00018392,2]
[373434027,1753008638358,-1521.0,0.00018392,2]
[373434029,1753008638367,-500.0,0.00018392,2]
[373434031,1753008638376,-840.0,0.00018392,2]
[373434033,1753008638385,-15339.4818074,0.000184,2]
[373434038,1753008638427,-637.23605976,0.000184,2]
[373434261,1753008640499,-500.0,0.000184,2]
[373434263,1753008640511,-1484.78649278,0.000184,2]
[373434265,1753008640522,-1734.85625653,0.000184,2]
[373434507,1753008642923,-872.45144642,0.000184,2]
[373434517,1753008643006,-3023.7522,0.000184,2]
[373434519,1753008643018,-8169.67795321,0.000184,2]
[373434521,1753008643027,-191.8621965,0.00018439,2]
[373434523,1753008643037,-153.44383043,0.0001844,2]
[373434525,1753008643046,-500.0,0.0001844,2]
[373434527,1753008643055,-1210.0,0.0001844,2]
[373434529,1753008643064,-1210.0,0.0001844,2]
[373434531,1753008643074,-425.88570315,0.0001844,2]
[373434533,1753008643083,-1210.0,0.0001844,2]
[373434535,1753008643092,-1210.0,0.0001844,2]
[373434537,1753008643102,-1210.0,0.0001844,2]
[373434539,1753008643112,-1210.0,0.0001844,2]
[373434541,1753008643121,-154.0,0.0001844,2]
[373434543,1753008643131,-214.0,0.0001844,2]
[373434545,1753008643140,-154.0,0.0001844,2]
[373434547,1753008643149,-154.0,0.0001844,2]
[373434549,1753008643159,-154.28654541,0.0001844,2]
[373434551,1753008643168,-1004.8739,0.00018442,2]
[373434553,1753008643177,-471.14760146,0.00018443,2]
[373434555,1753008643187,-3419.2418905,0.00018443,2]
[373434557,1753008643196,-548.4715634,0.00018456,2]
[373434559,1753008643206,-111944.113395,0.00018456,2]
[373434561,1753008643215,-744.22,0.00018469,2]
[373434563,1753008643224,-178.51087437,0.00018492,2]
[373434565,1753008643234,-239.84119403,0.00018513,2]
[373434567,1753008643243,-168.0,0.0001852,2]
[373434569,1753008643253,-159.06782167,0.0001853,2]
[373434572,1753008643262,-1000.0,0.00018553,2]
[373434573,1753008643271,-168.0,0.00018579,2]
[373434575,1753008643281,-151.0,0.00018581,2]
[373434577,1753008643290,-151.0,0.00018581,2]
[373434579,1753008643299,-151.0,0.00018581,2]
[373434581,1753008643309,-151.0,0.00018581,2]
[373434583,1753008643318,-151.0,0.00018581,2]
[373434586,1753008643328,-151.0,0.00018584,2]
[373434587,1753008643337,-151.0,0.00018584,2]
[373434589,1753008643346,-151.0,0.00018588,2]
[373434591,1753008643356,-1680.0,0.00018593,2]
[373434593,1753008643365,-168.0,0.00018614,2]
[373434595,1753008643374,-2172.8423302,0.00018627,2]
[373434597,1753008643383,-500.0,0.00018629,2]
[373434599,1753008643393,-500.0,0.00018629,2]
[373434601,1753008643402,-500.0,0.00018629,2]
[373434603,1753008643411,-500.0,0.00018629,2]
[373434605,1753008643421,-500.0,0.00018629,2]
[373434608,1753008643430,-500.0,0.00018629,2]
[373434610,1753008643440,-500.0,0.00018629,2]
[373434612,1753008643449,-500.0,0.00018629,2]
[373434614,1753008643458,-484.21368469,0.00018629,2]
[373434616,1753008643467,-500.0,0.00018629,2]
[373434618,1753008643476,-606.14433078,0.00018629,2]
[373434619,1753008643485,-500.0,0.00018629,2]
[373434621,1753008643495,-571337.10927812,0.0001863,2]
[373434623,1753008643504,-14418.96928696,0.0001863,2]
[373434625,1753008643513,-151.0,0.0001863,2]
[373434628,1753008643524,-151.0,0.0001863,2]
[373434630,1753008643534,-151.0,0.0001863,2]
[373434632,1753008643548,-151.0,0.0001863,2]
[373434634,1753008643558,-151.0,0.0001863,2]
[373434636,1753008643567,-151.0,0.0001863,2]
[373434638,1753008643577,-151.0,0.0001863,2]
[373434640,1753008643587,-151.0,0.0001863,2]
[373434642,1753008643596,-151.0,0.0001863,2]
[373434644,1753008643606,-203.47553003,0.0001863,2]
[373434646,1753008643615,-154.58324751,0.0001863,2]
[373434648,1753008643624,-500.0,0.0001863,2]
[373434650,1753008643633,-167.52,0.0001863,2]
[373434652,1753008643643,-8358.21222545,0.0001863,2]
[373434658,1753008643691,-4398.65599977,0.0001863,2]
[373434660,1753008643703,-29083.68228822,0.0001863,2]
[373434662,1753008643714,-1581.82900314,0.0001863,2]
[373434665,1753008643731,-2409.33409,0.0001863,2]
[373434667,1753008643743,-3029.52542672,0.0001863,2]
[373434670,1753008643765,-3700.7,0.0001863,2]
[373434903,1753008646200,-151.0,0.00018598,2]
[373434904,1753008646209,-974.0,0.0001863,2]
[373434905,1753008646221,-574.05099988,0.0001863,2]
[373434906,1753008646232,-503.08810642,0.0001863,2]
[373434908,1753008646256,-12214.61224229,0.0001863,2]
[373434959,1753008793447,153.77,0.000229,31]
[373434960,1753008793514,153.77,0.000229,31]
[373434961,1753008793587,153.77,0.000229,31]
[373434962,1753008793649,153.77,0.000229,31]
[373434963,1753008793987,153.77,0.000229,31]
[373434964,1753008794067,153.77,0.000229,31]
[373434965,1753008794131,153.77,0.000229,31]
[373434966,1753008837786,15623.10117559,0.00030137,120]
[373434967,1753008988733,256.0,0.00030136,120]
[373434968,1753009153594,150.0,0.00030136,120]
[373434969,1753009214211,1743.99496065,0.00030136,120]
[373434970,1753009386672,1000.0,0.00030136,120]
[373434972,1753009436422,217.73,0.00013699,2]
[373434973,1753009447120,1000.0,0.00030136,120]
[373434974,1753009469621,513.0,0.00015991,2]
[373434975,1753009609503,997.22,0.00025984,120]
[373434976,1753009615133,-1000.0,0.00017309,2]
[373434977,1753009615155,-997.22,0.00017323,2]
[373434978,1753009615176,-1000.0,0.0001735,2]
[373434979,1753009615197,-1000.0,0.00017373,2]
[373434980,1753009615218,-512.0,0.000175,2]
[373434981,1753009615238,-408.70112146,0.0001755,2]
[373434996,1753009831986,-251.71250058,0.00017359,2]
[373434997,1753009832197,-269.01749942,0.00017359,2]
[373434998,1753009832207,-976.11979858,0.0001743,2]
[373434999,1753009832229,-23.88020142,0.0001743,2]
[373435000,1753009832239,-492.0,0.000175,2]
[373435001,1753009832248,-900.60887854,0.0001755,2]
[373435002,1753009832258,-1000.0,0.00017555,2]
[373435003,1753009832267,-250.0,0.00017609,2]
[373435004,1753009832277,-300.0,0.00017754,2]
[373435005,1753009832287,-1200.0,0.00017754,2]
[373435006,1753009832298,-553.51,0.000179,2]
[373435007,1753009832307,-1861.235,0.0001791,2]
[373435008,1753009832316,-4126.0,0.0001791,2]
[373435009,1753009832325,-231.28369723,0.00017922,2]
[373435010,1753009832335,-5325.99324244,0.00017922,2]
[373435011,1753009832350,-1567.21118677,0.00017922,2]
[373435012,1753009832360,-150.0,0.00017934,2]
[373435013,1753009832369,-150.0,0.00017934,2]
[373435014,1753009832379,-150.0,0.00017934,2]
[373435015,1753009832388,-150.0,0.00017934,2]
[373435016,1753009832398,-150.0,0.00017934,2]
[373435017,1753009832407,-95.39465079,0.00017934,2]
[373435022,1753009834237,1503.704,0.00030136,120]
[373435023,1753009838098,-3256.60534921,0.00017934,2]
[373435024,1753009838108,-952.0,0.00017934,2]
[373435025,1753009838117,-2017.0,0.00017934,2]
[373435026,1753009838128,-807.0,0.00017934,2]
[373435027,1753009838137,-961.0,0.00017934,2]
[373435028,1753009838148,-1268.0,0.00017934,2]
[373435029,1753009838158,-1287.0,0.00017934,2]
[373435030,1753009838169,-562.0,0.00017934,2]
[373435031,1753009838179,-595.0,0.00017934,2]
[373435032,1753009838188,-1687.0,0.00017934,2]
[373435033,1753009838197,-152.01,0.00017991,2]
[373435034,1753009838206,-168.0,0.00018079,2]
[373435035,1753009838215,-928.84,0.00018082,2]
[373435036,1753009838224,-927.76,0.000181,2]
[373435037,1753009838234,-150.11,0.00018229,2]
[373435038,1753009838244,-225.128118,0.00018257,2]
[373435039,1753009838253,-547.36,0.00018329,2]
[373435040,1753009838263,-150.0,0.00018356,2]
[373435041,1753009838272,-150.0,0.00018356,2]
[373435042,1753009838282,-458.36,0.00018356,2]
[373435043,1753009838291,-150.0,0.00018356,2]
[373435044,1753009838300,-150.0,0.00018356,2]
[373435045,1753009838309,-150.0,0.00018356,2]
[373435047,1753009838319,-465.17,0.00018369,2]
[373435049,1753009838328,-815.42,0.00018369,2]
[373435050,1753009838337,-815.42,0.00018369,2]
[373435052,1753009838346,-465.17,0.00018369,2]
[373435054,1753009838355,-154.53877,0.0001844,2]
[373435056,1753009838365,-781.83729947,0.00018451,2]
[373435058,1753009838374,-1983.14467302,0.00018519,2]
[373435060,1753009838384,-150.11431733,0.0001852,2]
[373435062,1753009838393,-1000.0,0.0001853,2]
[373435064,1753009838403,-2500.0,0.0001853,2]
[373435065,1753009838412,-8172.9,0.00018533,2]
[373435067,1753009838421,-8775.92,0.00018533,2]
[373435069,1753009838430,-2800.08,0.00018533,2]
[373435071,1753009838439,-150.99,0.00018533,2]
[373435073,1753009838449,-150.99,0.00018533,2]
[373435074,1753009838459,-299.99,0.00018533,4]
[373435076,1753009838468,-300.95,0.00018543,2]
[373435078,1753009838478,-154.53877,0.0001855,2]
[373435080,1753009838488,-81345.51653987,0.000186,2]
[373435229,1753009840242,-1620.90954319,0.000186,2]
[373435231,1753009840257,-10368.30426776,0.000186,2]
[373435233,1753009840268,-756.56390713,0.000186,2]
[373435390,1753009843015,-10347.00497718,0.000186,2]
[373435392,1753009846301,-2180.68659247,0.00017242,2]
[373435393,1753009846311,-6496.36340743,0.000186,2]
[373435396,1753009846618,-80724.4865913,0.000186,2]
[373435397,1753009846673,-4363.43909579,0.000186,2]
[373435405,1753009846870,-53977.41167035,0.000186,2]
[373435406,1753009846880,-1983.14467297,0.00018617,2]
[373435407,1753009846891,-203.47553003,0.00018618,2]
[373435408,1753009846901,-154.58324751,0.00018618,2]
[373435409,1753009846910,-500.0,0.00018618,2]
[373435410,1753009846920,-2932.0,0.00018618,2]
[373435411,1753009846929,-161.20734741,0.00018618,2]
[373435412,1753009846939,-160.0,0.00018619,2]
[373435413,1753009846948,-476.8747822,0.00018619,2]
[373435414,1753009846958,-210.86573235,0.00018619,2]
[373435415,1753009846967,-839.31074571,0.00018619,2]
[373435416,1753009846976,-15629.95221597,0.00018619,2]
[373435417,1753009846985,-2172.8423302,0.00018619,2]
[373435418,1753009846995,-1047.221,0.00018619,2]
[373435419,1753009847004,-150.0,0.00018619,2]
[373435420,1753009847013,-805.0,0.00018619,2]
[373435421,1753009847023,-500.0,0.00018619,2]
[373435422,1753009847031,-500.0,0.00018619,2]
[373435423,1753009847040,-500.0,0.00018619,2]
[373435425,1753009847050,-500.0,0.00018619,2]
[373435427,1753009847059,-500.0,0.00018619,2]
[373435429,1753009847069,-500.0,0.00018619,2]
[373435430,1753009847078,-500.0,0.00018619,2]
[373435431,1753009847087,-484.21368469,0.00018619,2]
[373435432,1753009847096,-500.0,0.00018619,2]
[373435433,1753009847105,-606.14433078,0.00018619,2]
[373435434,1753009847115,-500.0,0.00018619,2]
[373435435,1753009847124,-500.0,0.00018619,2]
[373435436,1753009847134,-50000.1644986,0.0001862,2]
[373435437,1753009847145,-17739.9113386,0.0001862,2]
[373435438,1753009847155,-1325.8101304,0.0001862,2]
[373435439,1753009847164,-2148.0366655,0.0001862,2]
[373435440,1753009847174,-1000.0,0.00018629,2]
[373435441,1753009847183,-500.0,0.0001863,2]
[373435442,1753009847194,-500.0,0.0001863,2]
[373435443,1753009847203,-500.0,0.0001863,2]
[373435444,1753009847212,-500.0,0.0001863,2]
[373435445,1753009847224,-500.0,0.0001863,2]
[373435446,1753009847233,-500.0,0.0001863,2]
[373435447,1753009847242,-500.0,0.0001863,2]
[373435448,1753009847252,-500.0,0.0001863,2]
[373435449,1753009847262,-500.0,0.0001863,2]
[373435450,1753009847271,-500.0,0.0001863,2]
[373435451,1753009847280,-659.0,0.0001863,2]
[373435452,1753009847289,-500.0,0.0001863,2]
[373435453,1753009847298,-500.0,0.0001863,2]
[373435454,1753009847307,-500.0,0.0001863,2]
[373435455,1753009847316,-500.0,0.0001863,2]
[373435456,1753009847326,-500.0,0.0001863,2]
[373435458,1753009847335,-500.0,0.0001863,2]
[373435459,1753009847344,-500.0,0.0001863,2]
[373435460,1753009847354,-500.0,0.0001863,2]
[373435461,1753009847364,-500.0,0.0001863,2]
[373435462,1753009847373,-500.0,0.0001863,2]
[373435463,1753009847382,-500.0,0.0001863,2]
[373435464,1753009847393,-500.0,0.0001863,2]
[373435465,1753009847402,-500.0,0.0001863,2]
[373435466,1753009847411,-500.0,0.0001863,2]
[373435467,1753009847421,-500.0,0.0001863,2]
[373435468,1753009847432,-500.0,0.0001863,2]
[373435469,1753009847441,-500.0,0.0001863,2]
[373435470,1753009847451,-500.0,0.0001863,2]
[373435471,1753009847460,-500.0,0.0001863,2]
[373435472,1753009847470,-500.0,0.0001863,2]
[373435473,1753009847480,-500.0,0.0001863,2]
[373435474,1753009847489,-500.0,0.0001863,2]
[373435475,1753009847499,-500.0,0.0001863,2]
[373435476,1753009847509,-500.0,0.0001863,2]
[373435477,1753009847518,-500.0,0.0001863,2]
[373435478,1753009847528,-500.0,0.0001863,2]
[373435479,1753009847538,-500.0,0.0001863,2]
[373435480,1753009847548,-500.0,0.0001863,2]
[373435481,1753009847557,-500.0,0.0001863,2]
[373435482,1753009847567,-500.0,0.0001863,2]
[373435483,1753009847577,-500.0,0.0001863,2]
[373435484,1753009847586,-500.0,0.0001863,2]
[373435485,1753009847595,-500.0,0.0001863,2]
[373435486,1753009847604,-500.0,0.0001863,2]
[373435487,1753009847613,-500.0,0.0001863,2]
[373435488,1753009847623,-500.0,0.0001863,2]
[373435489,1753009847632,-500.0,0.0001863,2]
[373435490,1753009847643,-500.0,0.0001863,2]
[373435491,1753009847653,-500.0,0.0001863,2]
[373435492,1753009847662,-500.0,0.0001863,2]
[373435493,1753009847671,-500.0,0.0001863,2]
[373435494,1753009847681,-500.0,0.0001863,2]
[373435495,1753009847690,-500.0,0.0001863,2]
[373435496,1753009847699,-500.0,0.0001863,2]
[373435497,1753009847708,-500.0,0.0001863,2]
[373435498,1753009847717,-500.0,0.0001863,2]
[373435499,1753009847727,-500.0,0.0001863,2]
[373435500,1753009847738,-500.0,0.0001863,2]
[373435501,1753009847747,-500.0,0.0001863,2]
[373435502,1753009847756,-500.0,0.0001863,2]
[373435503,1753009847766,-500.0,0.0001863,2]
[373435504,1753009847776,-529.0,0.0001863,2]
[373435505,1753009847785,-500.0,0.0001863,2]
[373435506,1753009847794,-500.0,0.0001863,2]
[373435507,1753009847804,-500.0,0.0001863,2]
[373435508,1753009847813,-500.0,0.0001863,2]
[373435509,1753009847822,-500.0,0.0001863,2]
[373435510,1753009847832,-500.0,0.0001863,2]
[373435511,1753009847841,-500.0,0.0001863,2]
[373435512,1753009847850,-500.0,0.0001863,2]
[373435513,1753009847861,-500.0,0.0001863,2]
[373435514,1753009847871,-500.0,0.0001863,2]
[373435515,1753009847880,-500.0,0.0001863,2]
[373435516,1753009847892,-500.0,0.0001863,2]
[373435517,1753009847902,-518.0,0.0001863,2]
[373435518,1753009847912,-500.0,0.0001863,2]
[373435519,1753009847921,-500.0,0.0001863,2]
[373435520,1753009847931,-500.0,0.0001863,2]
[373435521,1753009847941,-849.0,0.0001863,2]
[373435522,1753009847950,-500.0,0.0001863,2]
[373435523,1753009847959,-500.0,0.0001863,2]
[373435524,1753009847969,-150.0,0.0001863,2]
[373435525,1753009847977,-500.0,0.0001863,2]
[373435526,1753009847986,-832.48,0.0001863,2]
[373435527,1753009847996,-480.74957979,0.0001863,2]
[373435528,1753009848014,-3553.03744608,0.0001863,2]
[373435529,1753009848026,-2285.07301463,0.0001863,2]
[373435530,1753009848038,-2977.87433345,0.0001863,2]
[373436048,1753009857986,2000.0,0.00030136,120]
[373436049,1753009864535,2000.0,0.00030136,120]
[373436050,1753009869867,2000.0,0.00030136,120]
[373436051,1753009876727,2000.0,0.00030136,120]
[373436052,1753009884966,2000.0,0.00030136,120]
[373436053,1753009890862,2000.0,0.00030136,120]
[373436054,1753009897339,5000.0,0.00030136,120]
[373436055,1753009919167,3000.0,0.00030137,120]
[373436056,1753010001574,150.0,0.00030136,120]
[373436057,1753010269527,315.15927901,0.000211,28]
[373436064,1753010388105,161.61,0.00030136,120]
[373436065,1753010444378,956.38295046,0.0003,120]
[373436067,1753010472979,206.84,0.00013699,2]
[373436068,1753010527269,300.0,0.00030136,120]
[373436069,1753010536371,1402.98859283,0.0003,120]
[373436070,1753010537740,300.0,0.00030136,120]
[373436071,1753010704056,1001.66,0.00025926,120]
[373436082,1753010952837,150.0,0.00030136,120]
[373436090,1753011032261,-514.0,0.00016392,2]
[373436091,1753011032270,-1000.0,0.00016538,2]
[373436092,1753011032279,-244.0,0.00016685,3]
[373436093,1753011032288,-250.0,0.00016704,2]
[373436094,1753011032298,-150.0,0.00016704,2]
[373436095,1753011032307,-158.12670496,0.00016722,2]
[373436096,1753011032323,-608.5,0.00016722,2]
[373436097,1753011032347,-233.37329504,0.00016722,2]
[373436098,1753011032357,-114.8857381,0.00016833,2]
[373436099,1753011032367,-135.1142619,0.00016833,2]
[373436100,1753011032376,-158.0,0.00016999,2]
[373436101,1753011032386,-99.3468621,0.00016999,2]
[373436102,1753011032536,-200.6531379,0.00016999,2]
[373436103,1753011032548,-966.60569906,0.00016999,2]
[373436104,1753011032560,-233.39430094,0.00016999,2]
[373436105,1753011032570,-300.0,0.00016999,2]
[373436106,1753011032582,-3931.08652981,0.00017,2]
[373436107,1753011032593,-5774.12979269,0.00017,2]
[373436108,1753011032624,-33760.38340124,0.00017,2]
[373436109,1753011032633,-9140.81078244,0.00017,2]
[373436111,1753011032644,-6245.4087947,0.00017,2]
[373436138,1753011038126,-1001.79968032,0.00017,2]
[373436139,1753011038291,-15473.7023008,0.00017,2]
[373436140,1753011038301,-879.97,0.00017071,2]
[373436141,1753011038311,-150.0,0.0001726,2]
[373436142,1753011038320,-150.0,0.0001726,2]
[373436143,1753011038329,-150.0,0.0001726,2]
[373436144,1753011038339,-150.0,0.0001726,2]
[373436145,1753011038348,-1001.66,0.00017284,2]
[373436146,1753011038358,-353.85,0.0001729,2]
[373436147,1753011038367,-1000.0,0.00017296,2]
[373436148,1753011038377,-666.0,0.00017323,2]
[373436149,1753011038386,-768.10961152,0.00017334,2]
[373436150,1753011038395,-1630.84,0.0001741,2]
[373436151,1753011038405,-1629.12,0.0001741,2]
[373436152,1753011038415,-664.49217218,0.0001742,2]
[373436153,1753011038425,-152.52,0.00017491,2]
[373436154,1753011038435,-1558.91,0.000175,2]
[373436155,1753011038444,-465.17,0.000175,2]
[373436156,1753011038453,-231.28369723,0.00017509,2]
[373436157,1753011038462,-7142.856,0.00017509,2]
[373436158,1753011038472,-250.0,0.00017515,2]
[373436159,1753011038481,-1300.0,0.0001752,2]
[373436160,1753011038490,-6468.22935435,0.0001752,2]
[373436161,1753011038503,-3531.76064565,0.0001752,2]
[373436162,1753011038512,-937.61475042,0.0001752,2]
[373436163,1753011038524,-1174.0,0.0001752,2]
[373436331,1753011040302,-557.0,0.000175,2]
[373436333,1753011040312,-974.01524958,0.0001752,2]
[373436335,1753011040321,-9999.99,0.0001752,2]
[373436337,1753011040330,-150.99,0.0001752,2]
[373436339,1753011040339,-150.99,0.0001752,2]
[373436341,1753011040349,-4463.22,0.0001752,2]
[373436343,1753011040358,-325.14,0.0001752,2]
[373436345,1753011040367,-9999.99,0.0001752,2]
[373436347,1753011040376,-5378.66475042,0.0001752,2]
[373436479,1753011043223,-4621.32524958,0.0001752,2]
[373436480,1753011043234,-999.99,0.0001752,2]
[373436481,1753011043243,-150.0,0.00017534,2]
[373436482,1753011043253,-667.31,0.00017634,3]
[373436483,1753011043262,-150.0,0.00017644,2]
[373436484,1753011043272,-167.01,0.00017666,2]
[373436485,1753011043282,-150.0,0.0001774,2]
[373436486,1753011043291,-500.0,0.00017753,2]
[373436487,1753011043302,-600.0,0.00017794,2]
[373436488,1753011043311,-600.0,0.00017794,2]
[373436489,1753011043320,-600.0,0.00017794,2]
[373436490,1753011043331,-600.0,0.00017794,2]
[373436491,1753011043340,-173.69,0.00017794,2]
[373436492,1753011043351,-150.0,0.00017808,2]
[373436493,1753011043361,-4394.39371571,0.00017875,2]
[373436494,1753011043371,-250.35,0.00017877,2]
[373436495,1753011043380,-165.57,0.00017975,2]
[373436496,1753011043389,-961.0,0.00018018,2]
[373436497,1753011043399,-2017.0,0.00018018,2]
[373436498,1753011043408,-807.0,0.00018018,2]
[373436499,1753011043418,-1268.0,0.00018018,2]
[373436500,1753011043427,-562.0,0.00018018,2]
[373436501,1753011043436,-595.0,0.00018018,2]
[373436502,1753011043445,-1287.0,0.00018018,2]
[373436503,1753011043454,-1687.0,0.00018018,2]
[373436504,1753011043463,-889.0,0.00018018,2]
[373436505,1753011043473,-1167.0,0.00018018,2]
[373436506,1753011043482,-952.0,0.00018018,2]
[373436507,1753011043492,-4126.0,0.00018018,2]
[373436508,1753011043501,-3352.0,0.00018018,2]
[373436509,1753011043511,-150.0,0.00018027,2]
[373436510,1753011043520,-1000.0,0.00018031,2]
[373436511,1753011043530,-4394.39371568,0.00018033,2]
[373436512,1753011043540,-465.17,0.00018041,2]
[373436513,1753011043550,-815.42,0.00018041,2]
[373436514,1753011043559,-7407.141672,0.00018057,2]
[373436515,1753011043568,-150.0,0.00018082,2]
[373436516,1753011043578,-3002.92080499,0.00018122,2]
[373436517,1753011043589,-4394.39371568,0.00018191,2]
[373436518,1753011043599,-306.474411,0.00018257,2]
[373436519,1753011043608,-302.8,0.00018301,2]
[373436520,1753011043619,-300.0,0.00018301,2]
[373436521,1753011043629,-437.88,0.00018329,2]
[373436522,1753011043639,-4394.39371568,0.0001835,2]
[373436523,1753011043648,-1000.0,0.00018353,2]
[373436524,1753011043658,-250.0,0.00018353,2]
[373436525,1753011043668,-150.0,0.00018353,2]
[373436526,1753011043679,-1000.0,0.00018353,2]
[373436527,1753011043688,-300.0,0.00018353,2]
[373436528,1753011043699,-1152.71254014,0.00018354,2]
[373436529,1753011043709,-150.0,0.00018356,2]
[373436530,1753011043719,-465.17,0.00018369,2]
[373436531,1753011043729,-937.54,0.00018369,2]
[373436532,1753011043739,-871.6621038,0.00018407,2]
[373436533,1753011043749,-150.0,0.00018411,2]
[373436534,1753011043759,-1246.847,0.00018428,2]
[373436535,1753011043769,-164.50723438,0.00018428,2]
[373436536,1753011043778,-360.40976,0.0001844,2]
[373436537,1753011043788,-151.0,0.0001846,2]
[373436538,1753011043797,-151.0,0.0001846,2]
[373436539,1753011043807,-151.0,0.0001846,2]
[373436540,1753011043816,-151.0,0.00018461,2]
[373436541,1753011043825,-151.0,0.00018463,2]
[373436542,1753011043835,-151.0,0.00018464,2]
[373436543,1753011043845,-151.0,0.00018467,2]
[373436544,1753011043854,-151.0,0.00018472,2]
[373436545,1753011043864,-392.16141224,0.00018502,2]
[373436546,1753011043873,-4394.39371568,0.00018508,2]
[373436547,1753011043883,-565.69539557,0.00018516,2]
[373436548,1753011043893,-3984.01,0.00018519,2]
[373436549,1753011043902,-1305.5619,0.00018519,2]
[373436550,1753011043912,-689.42247168,0.00018527,2]
[373436551,1753011043921,-360.40977,0.0001855,2]
[373436552,1753011043932,-160.0,0.00018598,2]
[373436553,1753011043942,-839.31074571,0.00018598,2]
[373436554,1753011043952,-210.86573235,0.00018598,2]
[373436555,1753011043962,-476.8747822,0.00018598,2]
[373436556,1753011043972,-7681.20591386,0.00018605,2]
[373436557,1753011043981,-36861.97429883,0.00018612,2]
[373436558,1753011043991,-689.42247168,0.00018613,2]
[373436559,1753011044001,-152.49810851,0.00018613,2]
[373436560,1753011044010,-1300.0,0.00018616,2]
[373436561,1753011044019,-200.0,0.0001862,5]
[373436562,1753011044028,-200.0,0.0001862,5]
[373436563,1753011044041,-201.010897,0.0001862,5]
[373436564,1753011044055,-150.0,0.0001863,2]
[373436565,1753011044064,-500.0,0.0001863,2]
[373436566,1753011044073,-251.87989716,0.0001863,2]
[373436567,1753011044083,-500.0,0.0001863,2]
[373436568,1753011044092,-150.0,0.0001863,2]
[373436569,1753011044102,-2810.0,0.0001863,2]
[373436570,1753011044111,-432.0,0.0001863,2]
[373436571,1753011044120,-150.0,0.0001863,2]
[373436572,1753011044130,-150.0,0.0001863,2]